fUST/lending_fUST_20250606
["ID","MTS","AMOUNT","RATE_DAILY","PERIOD"]
[364649131,1749179439797,-440.0,0.00022973,2]
[364649132,1749179439807,-440.0,0.00022973,2]
[364649133,1749179439816,-440.0,0.00022973,2]
[364649134,1749179439826,-434.58577622,0.00022973,2]
[364649135,1749179439836,-380.0,0.00022973,2]
[364649136,1749179439846,-440.0,0.00022973,2]
[364649137,1749179439855,-440.0,0.00022973,2]
[364649138,1749179439865,-440.0,0.00022973,2]
[364649139,1749179439875,-440.0,0.00022973,2]
[364649140,1749179439884,-440.0,0.00022973,2]
[364649141,1749179439894,-440.0,0.00022973,2]
[364649142,1749179439903,-171.0,0.00023,7]
[364649143,1749179439913,-605.79364686,0.00023038,8]
[364649144,1749179439922,-605.79364686,0.00023107,8]
[364649145,1749179439931,-605.79364686,0.00023176,8]
[364649146,1749179439940,-514.42509763,0.0002324,2]
[364649147,1749179439950,-605.79364686,0.00023245,8]
[364649148,1749179439959,-270.08904865,0.00023245,2]
[364649149,1749179439969,-440.0,0.00023245,2]
[364649150,1749179439979,-440.0,0.00023245,2]
[364649151,1749179439989,-440.0,0.00023245,2]
[364649152,1749179439999,-440.0,0.00023245,2]
[364649153,1749179440009,-434.38687479,0.00023245,2]
[364649154,1749179440019,-440.0,0.00023245,2]
[364649155,1749179440028,-440.0,0.00023245,2]
[364649156,1749179440038,-440.0,0.00023245,2]
[364649157,1749179440047,-440.0,0.00023246,2]
[364649158,1749179440057,-443.47661728,0.00023246,2]
[364649159,1749179440066,-440.0,0.00023246,2]
[364649160,1749179440076,-440.0,0.00023246,2]
[364649161,1749179440086,-488.15,0.00023246,2]
[364649162,1749179440098,-440.0,0.00023246,2]
[364649163,1749179440108,-440.0,0.00023246,2]
[364649164,1749179440118,-440.0,0.00023246,2]
[364649165,1749179440127,-440.0,0.00023246,2]
[364649166,1749179440136,-440.0,0.00023246,2]
[364649167,1749179440146,-440.0,0.00023246,2]
[364649168,1749179440155,-440.0,0.00023246,2]
[364649169,1749179440165,-421.70281131,0.00023246,2]
[364649170,1749179440174,-440.0,0.00023246,2]
[364649171,1749179440184,-440.0,0.00023246,2]
[364649172,1749179440193,-440.0,0.00023246,2]
[364649173,1749179440202,-440.0,0.00023246,2]
[364649174,1749179440212,-440.0,0.00023246,2]
[364649175,1749179440222,-440.0,0.00023246,2]
[364649176,1749179440232,-454.30235401,0.00023246,2]
[364649177,1749179440241,-440.0,0.00023246,2]
[364649178,1749179440250,-440.0,0.00023246,2]
[364649179,1749179440260,-440.0,0.00023246,2]
[364649180,1749179440269,-440.0,0.00023246,2]
[364649181,1749179440279,-440.0,0.00023246,2]
[364649182,1749179440288,-440.0,0.00023246,2]
[364649183,1749179440297,-440.0,0.00023246,2]
[364649184,1749179440306,-440.0,0.00023246,2]
[364649185,1749179440316,-440.0,0.00023246,2]
[364649186,1749179440325,-710.0,0.00023246,2]
[364649187,1749179440334,-440.0,0.00023246,2]
[364649188,1749179440344,-440.0,0.00023246,2]
[364649189,1749179440354,-440.0,0.00023246,2]
[364649190,1749179440363,-440.0,0.00023247,2]
[364649191,1749179440373,-312.51616843,0.00023247,2]
[364649192,1749179440383,-440.0,0.00023247,2]
[364649193,1749179440392,-440.0,0.00023247,2]
[364649194,1749179440401,-440.0,0.00023247,2]
[364649195,1749179440411,-528.06232939,0.00023247,2]
[364649196,1749179440420,-440.0,0.00023247,2]
[364649197,1749179440430,-399.01048036,0.00023247,2]
[364649198,1749179440439,-440.0,0.00023247,2]
[364649200,1749179440448,-605.79364686,0.00023314,9]
[364649202,1749179440458,-500.0,0.00023351,2]
[364649204,1749179440474,-500.0,0.00023378,2]
[364649206,1749179440487,-605.79364686,0.00023383,9]
[364649208,1749179440497,-500.0,0.00023406,2]
[364649210,1749179440507,-500.0,0.00023433,2]
[364649212,1749179440524,-605.79364686,0.00023452,9]
[364649213,1749179440540,-500.0,0.00023461,2]
[364649216,1749179440552,-500.0,0.00023488,2]
[364649218,1749179440562,-514.94173083,0.00023515,2]
[364649219,1749179440571,-213.99724648,0.00023519,2]
[364649221,1749179440580,-440.0,0.00023519,2]
[364649223,1749179440590,-440.0,0.00023519,2]
[364649225,1749179440599,-440.0,0.00023519,2]
[364649227,1749179440608,-433.12207913,0.00023519,2]
[364649229,1749179440617,-440.0,0.00023519,2]
[364649232,1749179440627,-440.0,0.00023519,2]
[364649233,1749179440636,-440.0,0.0002352,2]
[364649235,1749179440645,-440.0,0.0002352,2]
[364649237,1749179440655,-440.0,0.0002352,2]
[364649239,1749179440665,-488.15,0.0002352,2]
[364649242,1749179440675,-440.0,0.0002352,2]
[364649244,1749179440685,-440.0,0.0002352,2]
[364649246,1749179440694,-393.32783838,0.0002352,2]
[364649248,1749179440703,-440.0,0.0002352,2]
[364649250,1749179440713,-427.19700246,0.0002352,2]
[364649251,1749179440722,-440.0,0.0002352,2]
[364649253,1749179440731,-440.0,0.0002352,2]
[364649255,1749179440740,-440.0,0.0002352,2]
[364649257,1749179440749,-440.0,0.0002352,2]
[364649259,1749179440758,-440.0,0.0002352,2]
[364649261,1749179440767,-440.0,0.0002352,2]
[364649263,1749179440777,-446.9658271,0.0002352,2]
[364649265,1749179440786,-440.0,0.0002352,2]
[364649267,1749179440796,-397.57714135,0.0002352,2]
[364649269,1749179440805,-440.0,0.0002352,2]
[364649271,1749179440814,-440.0,0.0002352,2]
[364649273,1749179440824,-440.0,0.0002352,2]
[364649276,1749179440834,-440.0,0.0002352,2]
[364649278,1749179440844,-440.0,0.0002352,2]
[364649279,1749179440853,-440.0,0.0002352,2]
[364649281,1749179440863,-440.0,0.0002352,2]
[364649283,1749179440872,-440.0,0.0002352,2]
[364649285,1749179440881,-710.0,0.0002352,2]
[364649287,1749179440891,-423.3385983,0.0002352,2]
[364649289,1749179440900,-440.0,0.0002352,2]
[364649291,1749179440909,-413.96,0.0002352,2]
[364649293,1749179440918,-605.79364686,0.00023521,9]
[364649295,1749179440929,-440.0,0.00023521,2]
[364649297,1749179440937,-440.0,0.00023521,2]
[364649299,1749179440947,-440.0,0.00023521,2]
[364649301,1749179440955,-234.87197123,0.00023521,2]
[364649303,1749179440964,-387.17845786,0.00023521,2]
[364649305,1749179440973,-440.0,0.00023521,2]
[364649307,1749179440983,-605.79364686,0.0002359,9]
[364649309,1749179440992,-605.79364686,0.00023659,9]
[364649311,1749179441002,-420.0,0.00023676,2]
[364649313,1749179441012,-605.79364686,0.00023728,9]
[364649315,1749179441021,-418.70353612,0.00023793,2]
[364649317,1749179441030,-409.96485326,0.00023793,2]
[364649319,1749179441039,-440.0,0.00023793,2]
[364649321,1749179441049,-440.0,0.00023793,2]
[364649323,1749179441059,-440.0,0.00023793,2]
[364649325,1749179441067,-314.87465923,0.00023794,2]
[364649327,1749179441076,-440.0,0.00023794,2]
[364649329,1749179441087,-440.0,0.00023794,2]
[364649331,1749179441097,-488.15,0.00023794,2]
[364649333,1749179441106,-440.0,0.00023794,2]
[364649335,1749179441115,-440.0,0.00023794,2]
[364649337,1749179441125,-440.0,0.00023794,2]
[364649339,1749179441134,-487.92874711,0.00023794,2]
[364649341,1749179441143,-440.0,0.00023794,2]
[364649343,1749179441153,-440.0,0.00023794,2]
[364649345,1749179441162,-463.92638832,0.00023794,2]
[364649347,1749179441172,-440.0,0.00023794,2]
[364649349,1749179441181,-440.0,0.00023794,2]
[364649351,1749179441190,-440.0,0.00023794,2]
[364649353,1749179441199,-440.0,0.00023794,2]
[364649355,1749179441208,-440.0,0.00023794,2]
[364649357,1749179441217,-440.0,0.00023794,2]
[364649359,1749179441228,-440.0,0.00023794,2]
[364649361,1749179441237,-440.0,0.00023794,2]
[364649363,1749179441246,-440.0,0.00023794,2]
[364649365,1749179441255,-440.0,0.00023794,2]
[364649367,1749179441264,-440.0,0.00023794,2]
[364649369,1749179441273,-710.0,0.00023794,2]
[364649371,1749179441282,-440.0,0.00023794,2]
[364649373,1749179441291,-440.0,0.00023795,2]
[364649375,1749179441301,-440.0,0.00023795,2]
[364649377,1749179441310,-440.0,0.00023795,2]
[364649379,1749179441319,-440.0,0.00023795,2]
[364649381,1749179441328,-605.79364686,0.00023797,9]
[364649383,1749179441338,-1000.0,0.000238,5]
[364649385,1749179441347,-1000.0,0.000238,6]
[364649387,1749179441357,-1000.0,0.000238,7]
[364649389,1749179441366,-376.169671,0.00023839,3]
[364649391,1749179441375,-605.79364686,0.00023866,10]
[364649393,1749179441384,-605.79364686,0.00023934,10]
[364649395,1749179441394,-605.79364686,0.00024003,10]
[364649397,1749179441403,-505.23537389,0.00024037,2]
[364649399,1749179441412,-160.0,0.00024037,2]
[364649401,1749179441421,-215.0738,0.00024054,2]
[364649403,1749179441431,-440.0,0.00024067,2]
[364649406,1749179441441,-440.0,0.00024067,2]
[364649408,1749179441451,-440.0,0.00024067,2]
[364649410,1749179441460,-440.0,0.00024068,2]
[364649412,1749179441469,-440.0,0.00024068,2]
[364649414,1749179441478,-488.15,0.00024068,2]
[364649416,1749179441488,-425.91952509,0.00024068,2]
[364649418,1749179441496,-440.0,0.00024068,2]
[364649420,1749179441506,-440.0,0.00024068,2]
[364649422,1749179441516,-440.0,0.00024068,2]
[364649424,1749179441528,-440.0,0.00024068,2]
[364649425,1749179441537,-440.0,0.00024068,2]
[364649427,1749179441546,-440.0,0.00024068,2]
[364649429,1749179441554,-440.0,0.00024068,2]
[364649431,1749179441564,-440.0,0.00024068,2]
[364649433,1749179441573,-440.0,0.00024068,2]
[364649435,1749179441583,-440.0,0.00024068,2]
[364649437,1749179441592,-440.0,0.00024068,2]
[364649439,1749179441601,-440.0,0.00024068,2]
[364649441,1749179441610,-391.13459811,0.00024068,2]
[364649443,1749179441620,-440.0,0.00024068,2]
[364649445,1749179441632,-440.0,0.00024068,2]
[364649447,1749179441641,-710.0,0.00024068,2]
[364649449,1749179441650,-468.36443105,0.00024068,2]
[364649451,1749179441659,-440.0,0.00024069,2]
[364649453,1749179441668,-440.0,0.00024069,2]
[364649455,1749179441678,-1688.92582325,0.00024069,2]
[364649457,1749179441687,-440.0,0.00024069,2]
[364649459,1749179441696,-440.0,0.00024069,2]
[364649461,1749179441705,-605.79364686,0.00024072,10]
[364649463,1749179441714,-605.79364686,0.00024141,10]
[364649465,1749179441723,-605.79364686,0.0002421,10]
[364649467,1749179441733,-605.79364686,0.00024279,10]
[364649469,1749179441742,-2000.0,0.000243,2]
[364649471,1749179441751,-151.0,0.000243,5]
[364649473,1749179441760,-151.0,0.000243,7]
[364649475,1749179441769,-151.0,0.000243,10]
[364649477,1749179441778,-2000.0,0.000243,2]
[364649479,1749179441787,-151.0,0.000243,6]
[364649481,1749179441796,-934.27,0.000243,2]
[364649483,1749179441805,-150.0,0.0002431,2]
[364649485,1749179441814,-2224.0,0.0002431,2]
[364649487,1749179441824,-712.072,0.0002431,2]
[364649489,1749179441833,-1743.0,0.00024314,3]
[364649491,1749179441842,-1743.0,0.00024314,3]
[364649493,1749179441851,-1341.32977103,0.00024314,3]
[364649495,1749179441860,-476.84,0.0002432,3]
[364649497,1749179441869,-238.42,0.0002432,3]
[364649499,1749179441878,-715.26,0.0002432,3]
[364649501,1749179441887,-1743.0,0.00024321,3]
[364649503,1749179441895,-1743.0,0.00024321,3]
[364649505,1749179441904,-1743.0,0.00024321,3]
[364649507,1749179441914,-160.0,0.00024321,5]
[364649509,1749179441923,-155.292,0.00024325,2]
[364649510,1749179441932,-151.0,0.00024326,7]
[364649512,1749179441941,-151.0,0.00024326,7]
[364649514,1749179441950,-151.0,0.00024326,7]
[364649516,1749179441959,-151.0,0.00024326,7]
[364649518,1749179441968,-154.831013,0.00024326,7]
[364649520,1749179441977,-151.0,0.00024326,7]
[364649522,1749179441986,-151.0,0.00024326,7]
[364649524,1749179441996,-151.0,0.00024326,7]
[364649526,1749179442005,-151.0,0.00024326,7]
[364649528,1749179442014,-151.0,0.00024326,7]
[364649530,1749179442023,-180.749662,0.00024326,7]
[364649532,1749179442032,-151.0,0.00024326,7]
[364649534,1749179442042,-151.0,0.00024326,7]
[364649536,1749179442051,-151.0,0.00024326,7]
[364649538,1749179442060,-151.0,0.00024326,7]
[364649540,1749179442069,-151.0,0.00024326,7]
[364649542,1749179442078,-151.0,0.00024326,7]
[364649544,1749179442087,-151.0,0.00024326,7]
[364649546,1749179442097,-151.0,0.00024326,7]
[364649548,1749179442106,-151.0,0.00024326,7]
[364649549,1749179442115,-151.0,0.00024326,7]
[364649551,1749179442124,-231.297482,0.00024326,7]
[364649553,1749179442133,-151.0,0.00024326,7]
[364649555,1749179442142,-151.0,0.00024326,7]
[364649557,1749179442151,-151.0,0.00024326,7]
[364649559,1749179442160,-153.561152,0.00024326,7]
[364649561,1749179442169,-152.140674,0.00024326,7]
[364649563,1749179442178,-151.0,0.00024326,7]
[364649565,1749179442187,-151.0,0.00024326,7]
[364649567,1749179442196,-151.0,0.00024326,7]
[364649569,1749179442205,-227.732648,0.00024326,7]
[364649571,1749179442214,-151.0,0.00024326,7]
[364649573,1749179442223,-300.840392,0.00024326,7]
[364649575,1749179442232,-152.815808,0.00024326,7]
[364649577,1749179442240,-560.573001,0.00024326,7]
[364649579,1749179442249,-560.573001,0.00024326,7]
[364649581,1749179442259,-560.573001,0.00024326,7]
[364649583,1749179442269,-560.573001,0.00024326,7]
[364649585,1749179442278,-560.573001,0.00024326,7]
[364649586,1749179442289,-560.573001,0.00024326,7]
[364649588,1749179442300,-560.573001,0.00024326,7]
[364649590,1749179442309,-560.573001,0.00024326,7]
[364649592,1749179442318,-560.573001,0.00024326,7]
[364649594,1749179442328,-151.0,0.00024326,7]
[364649596,1749179442339,-560.573001,0.00024326,7]
[364649598,1749179442348,-151.0,0.00024326,7]
[364649600,1749179442357,-560.573001,0.00024326,7]
[364649602,1749179442366,-151.0,0.00024326,7]
[364649604,1749179442375,-560.573001,0.00024326,7]
[364649615,1749179442478,-151.0,0.00024326,7]
[364649617,1749179442488,-151.0,0.00024326,7]
[364649619,1749179442497,-560.573001,0.00024326,7]
[364649621,1749179442506,-560.573001,0.00024326,7]
[364649622,1749179442516,-151.0,0.00024326,7]
[364649624,1749179442530,-560.573001,0.00024326,7]
[364649626,1749179442540,-151.0,0.00024326,7]
[364649628,1749179442549,-560.573001,0.00024326,7]
[364649630,1749179442558,-151.0,0.00024326,7]
[364649632,1749179442569,-560.573001,0.00024326,7]
[364649634,1749179442579,-182.966646,0.00024326,7]
[364649636,1749179442588,-560.573001,0.00024326,7]
[364649638,1749179442597,-560.573001,0.00024326,7]
[364649640,1749179442606,-560.572997,0.00024326,7]
[364649642,1749179442616,-247.279953,0.00024326,7]
[364649644,1749179442625,-247.279953,0.00024326,7]
[364649646,1749179442634,-247.279953,0.00024326,7]
[364649648,1749179442644,-247.279953,0.00024326,7]
[364649650,1749179442654,-247.279953,0.00024326,7]
[364649652,1749179442663,-247.279953,0.00024326,7]
[364649654,1749179442672,-247.279953,0.00024326,7]
[364649656,1749179442682,-247.279953,0.00024326,7]
[364649658,1749179442695,-247.279953,0.00024326,7]
[364649660,1749179442712,-247.279953,0.00024326,7]
[364649662,1749179442726,-247.279953,0.00024326,7]
[364649664,1749179442735,-247.279953,0.00024326,7]
[364649666,1749179442744,-247.279953,0.00024326,7]
[364649667,1749179442753,-247.279953,0.00024326,7]
[364649669,1749179442763,-247.279953,0.00024326,7]
[364649671,1749179442772,-247.279953,0.00024326,7]
[364649673,1749179442781,-247.279953,0.00024326,7]
[364649675,1749179442790,-247.279953,0.00024326,7]
[364649677,1749179442799,-247.279953,0.00024326,7]
[364649679,1749179442809,-247.279946,0.00024326,7]
[364649681,1749179442818,-151.0,0.00024326,7]
[364649683,1749179442827,-151.0,0.00024326,7]
[364649685,1749179442837,-151.0,0.00024326,7]
[364649687,1749179442846,-224.0,0.00024326,7]
[364649689,1749179442855,-152.270737,0.00024326,7]
[364649691,1749179442864,-12677.18918728,0.00024326,30]
[364649692,1749179442874,-165.630123,0.00024327,7]
[364649694,1749179442883,-151.0,0.00024327,7]
[364649696,1749179442893,-152.747616,0.00024327,7]
[364649698,1749179442902,-151.0,0.00024327,7]
[364649700,1749179442911,-153.523669,0.00024327,7]
[364649702,1749179442920,-152.559669,0.00024327,7]
[364649704,1749179442929,-540.33785132,0.00024329,2]
[364649706,1749179442938,-151.0,0.0002433,7]
[364649708,1749179442947,-151.0,0.0002433,7]
[364649710,1749179442956,-151.0,0.0002433,7]
[364649712,1749179442965,-151.0,0.0002433,7]
[364649713,1749179442974,-151.669595,0.0002433,7]
[364649715,1749179442984,-151.0,0.0002433,7]
[364649717,1749179442994,-151.0,0.0002433,7]
[364649719,1749179443004,-151.0,0.0002433,7]
[364649721,1749179443014,-151.0,0.0002433,7]
[364649723,1749179443023,-151.0,0.0002433,7]
[364649725,1749179443032,-151.0,0.0002433,7]
[364649727,1749179443041,-151.0,0.0002433,7]
[364649729,1749179443050,-180.133122,0.0002433,7]
[364649731,1749179443059,-200.982712,0.0002433,7]
[364649734,1749179443069,-155.749069,0.0002433,7]
[364649736,1749179443078,-280.148208,0.0002433,7]
[364649738,1749179443088,-280.148208,0.0002433,7]
[364649740,1749179443098,-280.148208,0.0002433,7]
[364649742,1749179443107,-280.148208,0.0002433,7]
[364649743,1749179443115,-280.148208,0.0002433,7]
[364649745,1749179443124,-280.148208,0.0002433,7]
[364649747,1749179443134,-280.148208,0.0002433,7]
[364649749,1749179443143,-280.148208,0.0002433,7]
[364649752,1749179443152,-280.148208,0.0002433,7]
[364649755,1749179443162,-280.148208,0.0002433,7]
[364649758,1749179443171,-280.148208,0.0002433,7]
[364649761,1749179443180,-280.148208,0.0002433,7]
[364649764,1749179443190,-280.148208,0.0002433,7]
[364649767,1749179443199,-280.148208,0.0002433,7]
[364649770,1749179443208,-280.148208,0.0002433,7]
[364649773,1749179443217,-280.148208,0.0002433,7]
[364649776,1749179443226,-280.148208,0.0002433,7]
[364649778,1749179443235,-280.148208,0.0002433,7]
[364649781,1749179443245,-280.148208,0.0002433,7]
[364649784,1749179443254,-152.584539,0.0002433,7]
[364649787,1749179443263,-280.148213,0.0002433,7]
[364649790,1749179443272,-151.0,0.0002433,7]
[364649793,1749179443282,-151.0,0.0002433,7]
[364649796,1749179443291,-151.0,0.0002433,7]
[364649798,1749179443300,-211.678565,0.0002433,7]
[364649801,1749179443309,-151.0,0.0002433,7]
[364649805,1749179443319,-151.993116,0.0002433,7]
[364649809,1749179443328,-151.389825,0.0002433,7]
[364649814,1749179443338,-151.0,0.0002433,7]
[364649819,1749179443347,-151.0,0.0002433,7]
[364649824,1749179443358,-151.0,0.0002433,7]
[364649828,1749179443368,-151.0,0.0002433,7]
[364649833,1749179443377,-151.0,0.0002433,7]
[364649837,1749179443387,-187.443538,0.0002433,7]
[364649841,1749179443396,-151.0,0.0002433,7]
[364649844,1749179443405,-154.88465,0.0002433,7]
[364649847,1749179443416,-151.0,0.0002433,7]
[364649850,1749179443425,-1521841.42501956,0.0002433,20]
[364649854,1749179443441,-654.08156624,0.0002433,20]
[364649857,1749179443452,-37271.33854709,0.0002433,20]
[364649861,1749179443464,-6491.94835633,0.0002433,20]
[364649864,1749179443475,-401.42757738,0.0002433,20]
[364649873,1749179443512,-102162.41233416,0.0002433,20]
[364649876,1749179443527,-749.18887596,0.0002433,20]
[364649879,1749179443538,-409.89301525,0.0002433,20]
[364649882,1749179443549,-2990.49650582,0.0002433,20]
[364649915,1749179443758,-11489.7640552,0.00023191,3]
[364649917,1749179443768,-844.46291163,0.00024325,2]
[364649919,1749179443778,-53280.31424759,0.0002433,20]
[364649921,1749179443789,-73484.07820115,0.0002433,20]
[364649923,1749179443801,-27608.5088,0.0002433,20]
[364649925,1749179443812,-53595.7452056,0.0002433,20]
[364649927,1749179443823,-14726.78581004,0.0002433,20]
[364649929,1749179443836,-595.33629105,0.0002433,20]
[364650162,1749179446947,-405.0,0.00024232,2]
[364650164,1749179446957,-422.23145582,0.00024329,2]
[364650165,1749179446967,-12019.92552004,0.0002433,20]
[364650428,1749179549411,211.282919,0.00013699,2]
[364650429,1749179549763,192541.8349476,0.0002433,120]
[364650433,1749179677860,2500.0,0.00024,120]
[364650436,1749179734090,2500.0,0.00024,120]
[364650437,1749179791157,2124.0,0.00024,120]
[364650441,1749180345123,-150.0,0.00019728,2]
[364650442,1749180345146,-211.282919,0.00020187,2]
[364650443,1749180345167,-500.0,0.00020494,2]
[364650444,1749180345187,-160.0,0.00021311,2]
[364650445,1749180345208,-2648.20401679,0.00021311,2]
[364650446,1749180411075,-387.0,0.00021,7]
[364650447,1749180439134,-500.0,0.00020494,2]
[364650448,1749180439156,-3.66681369,0.00021,7]
[364650449,1749180445078,-181.14041102,0.00021,7]
[364650450,1749180448118,-461.43912134,0.00021,7]
[364650451,1749180452095,-221.42067098,0.00021,7]
[364650453,1749180522830,216.909416,0.00013699,2]
[364650477,1749180631880,-150.0,0.0001972,2]
[364650479,1749180631890,-602.93289159,0.0002,2]
[364650481,1749180631902,-1109.52767583,0.0002,2]
[364650483,1749180631912,-216.909416,0.00020187,2]
[364650485,1749180631924,-1455.33298297,0.00021,7]
[364650486,1749180631934,-259.9151881,0.00021036,2]
[364650488,1749180631943,-160.0,0.00021311,2]
[364650489,1749180631953,-2351.79598321,0.00021311,2]
[364650491,1749180631963,-300.0,0.00021461,2]
[364650492,1749180631973,-1222.01330937,0.00021462,2]
[364650493,1749180631983,-150.0,0.00021513,2]
[364650494,1749180631994,-500.0,0.0002159,2]
[364650495,1749180632003,-150.0,0.000219,2]
[364650496,1749180632013,-207.4,0.00022669,2]
[364650497,1749180632022,-500.0,0.00022673,2]
[364650498,1749180632031,-500.0,0.00022673,2]
[364650499,1749180632041,-500.0,0.00022673,2]
[364650500,1749180632050,-160.0,0.00022681,2]
[364650501,1749180632060,-300.0,0.00022681,2]
[364650502,1749180632070,-430.0,0.00022681,2]
[364650503,1749180632079,-430.0,0.00022681,2]
[364650504,1749180632089,-440.0,0.00022681,2]
[364650505,1749180632098,-440.0,0.00022681,2]
[364650506,1749180632107,-440.0,0.00022681,2]
[364650507,1749180632116,-3179.86259686,0.00022681,2]
[364650508,1749180632127,-6724.49399316,0.00022681,2]
[364650509,1749180632139,-2772.83259726,0.00022681,2]
[364650510,1749180632149,-22602.3588925,0.00022682,2]
[364650511,1749180632158,-191.9005216,0.00022682,2]
[364650513,1749180632168,-430.0,0.00022682,2]
[364650514,1749180632177,-446.57699151,0.00022682,2]
[364650515,1749180632186,-430.0,0.00022682,2]
[364650516,1749180632196,-440.0,0.00022682,2]
[364650517,1749180632205,-430.0,0.00022682,2]
[364650518,1749180632215,-639.51,0.00022682,2]
[364650519,1749180632224,-430.0,0.00022682,2]
[364650520,1749180632234,-453.42887441,0.00022682,2]
[364650521,1749180632243,-749.37,0.00022682,2]
[364650522,1749180632252,-440.0,0.00022682,2]
[364650523,1749180632262,-473.37364858,0.00022682,2]
[364650524,1749180632271,-430.0,0.00022682,2]
[364650525,1749180632280,-440.0,0.00022682,2]
[364650526,1749180632290,-474.43502334,0.00022682,2]
[364650527,1749180632299,-468.3285057,0.00022682,2]
[364650528,1749180632309,-440.0,0.00022682,2]
[364650529,1749180632319,-430.0,0.00022682,2]
[364650530,1749180632329,-440.0,0.00022682,2]
[364650531,1749180632338,-430.0,0.00022682,2]
[364650532,1749180632347,-279.13809244,0.00022682,2]
[364650533,1749180632356,-461.10523611,0.00022682,2]
[364650534,1749180632365,-465.93559303,0.00022682,2]
[364650535,1749180632375,-430.0,0.00022682,2]
[364650536,1749180632385,-440.0,0.00022682,2]
[364650537,1749180632395,-440.0,0.00022682,2]
[364650538,1749180632404,-512.93125917,0.00022683,2]
[364650539,1749180632414,-494.66083851,0.00022683,2]
[364650540,1749180632423,-491.69054054,0.00022683,2]
[364650541,1749180632432,-430.0,0.00022683,2]
[364650542,1749180632441,-467.60029577,0.00022683,2]
[364650543,1749180632450,-430.0,0.00022683,2]
[364650544,1749180632460,-430.0,0.00022683,2]
[364650545,1749180632469,-469.36806026,0.00022683,2]
[364650546,1749180632478,-445.86643482,0.00022683,2]
[364650547,1749180632487,-507.16228523,0.00022683,2]
[364650548,1749180632497,-430.0,0.00022683,2]
[364650549,1749180632507,-461.89617608,0.00022683,2]
[364650550,1749180632516,-440.0,0.00022683,2]
[364650551,1749180632525,-477.33779899,0.00022683,2]
[364650552,1749180632534,-430.0,0.00022683,2]
[364650553,1749180632543,-447.22657306,0.00022683,2]
[364650554,1749180632552,-430.0,0.00022683,2]
[364650555,1749180632561,-442.82073544,0.00022683,2]
[364650556,1749180632572,-440.0,0.00022683,2]
[364650557,1749180632581,-440.0,0.00022683,2]
[364650558,1749180632590,-484.10940813,0.00022684,2]
[364650559,1749180632600,-567.29660247,0.00022684,2]
[364650560,1749180632609,-434.44251459,0.00022684,2]
[364650561,1749180632619,-468.57829637,0.00022684,2]
[364650562,1749180632628,-430.0,0.00022684,2]
[364650563,1749180632637,-430.0,0.00022684,2]
[364650564,1749180632647,-462.94933247,0.00022684,2]
[364650565,1749180632656,-446.03090361,0.00022684,2]
[364650566,1749180632665,-447.37988585,0.00022684,2]
[364650567,1749180632674,-451.81951644,0.00022684,2]
[364650568,1749180632684,-440.0,0.00022684,2]
[364650569,1749180632693,-452.51036203,0.00022684,2]
[364650570,1749180632702,-430.0,0.00022684,2]
[364650571,1749180632712,-425.44974175,0.00022684,2]
[364650572,1749180632721,-430.0,0.00022684,2]
[364650573,1749180632730,-430.0,0.00022684,2]
[364650574,1749180632739,-269.92817625,0.00022684,2]